bitfinex/quotes_BTCUSD_20250212
["timestamp","ask_amount","ask_price","bid_price","bid_amount"]
[1739338862612,0.157401,95907.0,95902.0,0.0001066]
[1739338862848,0.001,95907.0,95902.0,0.1565146]
[1739338863017,0.00022387,95910.0,95906.0,0.003]
[1739338863215,0.157401,95907.0,95899.0,0.0001066]
[1739338863673,0.157401,95907.0,95902.0,0.003]
[1739338863850,0.157401,95907.0,95899.0,0.0001066]
[1739338864045,0.157401,95907.0,95906.0,0.003]
[1739338864295,0.001,95907.0,95906.0,0.003]
[1739338864747,0.156399,95908.0,95906.0,0.003]
[1739338865385,0.156404,95905.0,95899.0,0.0001066]
[1739338865587,0.156401,95908.0,95900.0,0.156412]
[1739338865821,0.001,95907.0,95900.0,0.156412]
[1739338866009,0.157401,95907.0,95900.0,0.156412]
[1739338866167,0.156401,95907.0,95900.0,0.156412]
[1739338866388,0.156401,95907.0,95906.0,0.003]
[1739338866587,0.156401,95907.0,95900.0,0.156412]
[1739338866987,0.00022387,95910.0,95900.0,0.002]
[1739338867319,0.156404,95906.0,95899.0,0.1565206]
[1739338868408,0.156403,95906.0,95899.0,0.1565196]
[1739338868595,0.208531,95909.0,95906.0,0.002]
[1739338868808,0.156401,95907.0,95900.0,0.156412]
[1739338869209,0.156403,95906.0,95899.0,0.0031066]
[1739338869467,0.156403,95906.0,95899.0,0.0001066]
[1739338869634,0.157403,95906.0,95899.0,0.0001066]
[1739338869830,0.001,95906.0,95899.0,0.0001066]
[1739338870072,0.156404,95905.0,95899.0,0.0001066]
[1739338870219,0.156404,95905.0,95899.0,0.0031066]
[1739338870775,0.156404,95905.0,95899.0,0.1595196]
[1739338871085,0.001,95906.0,95899.0,0.1595196]
[1739338871310,0.15662687,95907.0,95899.0,0.1595196]
[1739338871441,0.001,95906.0,95899.0,0.1595196]
[1739338871637,0.001,95906.0,95899.0,0.1565196]
[1739338871866,0.001,95906.0,95899.0,0.1595196]
[1739338872065,0.001,95906.0,95900.0,0.156411]
[1739338872271,0.156403,95906.0,95900.0,0.156411]
[1739338872787,0.156403,95906.0,95899.0,0.0031066]
[1739338872788,0.15762587,95907.0,95901.0,0.15641]
[1739338873001,0.15662587,95907.0,95901.0,0.15641]
[1739338873580,0.156404,95905.0,95900.0,0.003]
[1739338873792,0.15662687,95907.0,95900.0,0.159412]
[1739338874215,0.157404,95906.0,95900.0,0.159412]
[1739338874599,0.001,95906.0,95900.0,0.003]
[1739338874800,0.00022387,95907.0,95899.0,0.0001066]
[1739338875007,0.00122387,95907.0,95902.0,0.156408]
[1739338875194,0.00122387,95907.0,95901.0,0.003]
[1739338875393,0.00022387,95907.0,95902.0,0.156409]
[1739338875634,0.00022387,95907.0,95901.0,0.208548]
[1739338875819,0.001,95906.0,95904.0,0.156406]
[1739338876648,0.001,95906.0,95899.0,0.0001066]
[1739338876864,0.001,95906.0,95904.0,0.156405]
[1739338877166,0.00022387,95907.0,95904.0,0.156405]
[1739338877528,0.00122387,95907.0,95904.0,0.156405]
[1739338878021,0.00022387,95907.0,95904.0,0.159405]
[1739338878227,0.00122387,95907.0,95901.0,0.208546]
[1739338878432,0.00122387,95907.0,95906.0,0.156403]
[1739338878681,0.00122387,95907.0,95906.0,0.40994913]
[1739338878861,0.00122387,95907.0,95906.0,0.40890665]
[1739338879160,0.00022387,95907.0,95906.0,0.40890665]
[1739338879568,0.00022387,95907.0,95906.0,0.43021172]
[1739338879793,0.00022387,95907.0,95906.0,0.40890665]
[1739338880359,0.00122387,95907.0,95906.0,0.40890665]
[1739338880989,0.00022387,95907.0,95906.0,0.40890665]
[1739338881211,0.00222387,95907.0,95906.0,0.41990665]
[1739338885776,0.00122387,95907.0,95906.0,0.41490665]
[1739338885978,0.15,95955.0,95907.0,0.208535]
[1739338886180,0.156373,95924.0,95917.0,0.156384]
[1739338886383,0.208494,95926.0,95917.0,0.156384]
[1739338886609,0.156372,95926.0,95917.0,0.156384]
[1739338888296,0.156372,95926.0,95914.0,0.208518]
[1739338888508,0.156372,95926.0,95918.0,0.156382]
[1739338888745,0.156372,95926.0,95919.0,0.156381]
[1739338889134,0.157372,95926.0,95919.0,0.156381]
[1739338890536,0.156368,95927.0,95920.0,0.15638]
[1739338891046,0.004,95926.0,95920.0,0.15638]
[1739338891285,0.156368,95927.0,95920.0,0.15638]
[1739338891535,0.156368,95927.0,95919.0,0.15638]
[1739338891778,0.156368,95927.0,95919.0,0.15738]
[1739338892014,0.156368,95927.0,95920.0,0.002]
[1739338892251,0.08236004,95928.0,95922.0,0.156375]
[1739338892469,0.08236004,95928.0,95920.0,0.210506]
[1739338892718,0.23872704,95928.0,95921.0,0.156378]
[1739338893360,0.23872704,95928.0,95918.0,0.20851]
[1739338893904,0.23972704,95928.0,95918.0,0.20851]
[1739338894142,0.23972704,95928.0,95920.0,0.156378]
[1739338894379,0.156368,95927.0,95920.0,0.156378]
[1739338894519,0.00022366,95926.0,95920.0,0.156378]
[1739338894924,0.00022366,95926.0,95919.0,0.0001065]
[1739338895156,0.00022366,95926.0,95920.0,0.15638]
[1739338895626,0.00022366,95926.0,95921.0,0.156378]
[1739338896434,0.00022366,95926.0,95922.0,0.156377]
[1739338896605,0.00022366,95926.0,95919.0,0.0001065]
[1739338896807,0.00022366,95926.0,95920.0,0.156379]
[1739338897025,0.00022366,95926.0,95920.0,0.158379]
[1739338897330,0.00022366,95926.0,95920.0,0.160379]
[1739338897661,0.00022366,95926.0,95925.0,0.156372]
[1739338898904,0.00022366,95926.0,95925.0,0.158372]
[1739338900515,0.00022366,95926.0,95925.0,0.160372]
[1739338908299,0.15659366,95926.0,95925.0,0.004]
[1739338908503,0.20169366,95926.0,95925.0,0.004]
[1739338910424,0.04532366,95926.0,95925.0,0.004]
[1739338912178,0.20169366,95926.0,95925.0,0.004]
[1739338912991,0.04532366,95926.0,95925.0,0.004]
[1739338914406,0.20169366,95926.0,95925.0,0.004]
[1739338914808,0.04532366,95926.0,95925.0,0.004]
[1739338917370,0.04532366,95926.0,95925.0,0.00868932]
[1739338917567,0.04532366,95926.0,95925.0,0.004]
[1739338917774,0.04532366,95926.0,95925.0,0.00869285]
[1739338917922,0.04532366,95926.0,95925.0,0.004]
[1739338918131,0.12192366,95926.0,95925.0,0.004]
[1739338919105,0.14492366,95926.0,95925.0,0.002]
[1739338919594,0.14892366,95926.0,95925.0,0.002]
[1739338919737,0.156377,95922.0,95921.0,0.0001066]
[1739338919956,0.232977,95922.0,95921.0,0.0001066]
[1739338920945,0.232977,95922.0,95921.0,0.0011066]
[1739338921345,0.26035883,95922.0,95921.0,0.0001066]
[1739338921569,0.26035883,95922.0,95921.0,0.0011066]
[1739338922058,0.26235883,95922.0,95921.0,0.0011066]
[1739338922489,0.26035883,95922.0,95921.0,0.0011066]
[1739338922850,0.26235883,95922.0,95921.0,0.0011066]
[1739338923105,0.26235883,95922.0,95921.0,0.0001066]
[1739338923462,0.26235883,95922.0,95921.0,0.0011066]
[1739338928348,0.26235883,95922.0,95910.0,0.208527]
[1739338928552,0.15638,95920.0,95912.0,0.156393]
[1739338928951,0.15638,95920.0,95913.0,0.00471849]
[1739338929384,0.15638,95920.0,95913.0,0.16110949]
[1739338929594,0.26235883,95922.0,95921.0,0.0001066]
[1739338929758,0.2625827,95922.0,95921.0,0.0001066]
[1739338929954,0.24302433,95922.0,95921.0,0.0001066]
[1739338930139,0.23320087,95922.0,95921.0,0.0001066]
[1739338930338,0.23320087,95922.0,95921.0,0.00482496]
[1739338930583,0.23320087,95922.0,95921.0,0.0001066]
[1739338930922,0.23320087,95922.0,95921.0,0.0011066]
[1739338931043,0.23320087,95922.0,95921.0,0.00582496]
[1739338931245,0.23320087,95922.0,95921.0,0.0011066]
[1739338932132,0.08464556,95922.0,95921.0,0.0011066]
[1739338932263,0.08664556,95922.0,95921.0,0.0011066]
[1739338932472,0.08664556,95922.0,95921.0,0.00582496]
[1739338932655,0.24302256,95922.0,95921.0,0.00582496]
[1739338932854,0.26257727,95922.0,95921.0,0.00582496]
[1739338933370,0.26257727,95922.0,95921.0,0.00471836]
[1739338933569,0.25475558,95922.0,95914.0,0.0124548]
[1739338933804,0.156378,95921.0,95911.0,0.208524]
[1739338934184,0.07882387,95922.0,95909.0,0.20853]
[1739338934382,0.23520187,95922.0,95913.0,0.156391]
[1739338934956,0.00782298,95921.0,95913.0,0.156391]
[1739338935172,0.16837971,95923.0,95910.0,0.208527]
[1739338935319,0.156378,95921.0,95912.0,0.156392]
[1739338935784,0.156378,95921.0,95913.0,0.156391]
[1739338936349,0.156381,95920.0,95911.0,0.156394]
[1739338936548,0.156381,95920.0,95912.0,0.156392]
[1739338937105,0.156381,95920.0,95913.0,0.001]
[1739338937442,0.156381,95920.0,95912.0,0.156392]
[1739338937641,0.156381,95920.0,95912.0,0.157392]
[1739338938914,0.156381,95920.0,95912.0,0.156392]
[1739338939288,0.156377,95922.0,95914.0,0.15639]
[1739338939491,0.04532366,95926.0,95912.0,0.156392]
[1739338939757,0.04532366,95926.0,95912.0,0.001]
[1739338939888,0.156378,95921.0,95913.0,0.156391]
[1739338942305,0.157378,95921.0,95913.0,0.156391]
[1739338942456,0.157378,95921.0,95913.0,0.157391]
[1739338942662,0.156381,95920.0,95913.0,0.156391]
[1739338942824,0.157379,95921.0,95913.0,0.156391]
[1739338943030,0.157379,95921.0,95913.0,0.157391]
[1739338943225,0.157379,95921.0,95913.0,0.156391]
[1739338943434,0.157379,95921.0,95913.0,0.157391]
[1739338943630,0.15230889,95921.0,95913.0,0.157391]
[1739338943829,0.15638,95920.0,95913.0,0.157391]
[1739338944345,0.00022387,95923.0,95914.0,0.156388]
[1739338944519,0.08364526,96014.0,95914.0,0.156388]
[1739338944778,0.156379,95921.0,95914.0,6.004e-05]
[1739338944948,0.157379,95921.0,95914.0,6.004e-05]
[1739338945325,0.001,95921.0,95914.0,6.004e-05]
[1739338945491,0.156377,95922.0,95915.0,0.156388]
[1739338945689,0.156377,95922.0,95914.0,6.004e-05]
[1739338945961,0.156377,95922.0,95915.0,0.156388]
[1739338946165,0.208496,95925.0,95914.0,0.00206004]
[1739338946369,0.208481,95932.0,95914.0,0.00106004]
[1739338946565,0.156362,95931.0,95923.0,0.156373]
[1739338946706,0.156362,95931.0,95923.0,0.156374]
[1739338947306,0.156364,95930.0,95923.0,0.156374]
[1739338947550,0.156362,95932.0,95921.0,0.208503]
[1739338947760,0.534077,95934.0,95923.0,0.2085]
[1739338947967,0.156362,95931.0,95924.0,0.156372]
[1739338948504,0.156364,95930.0,95922.0,0.0498712]
[1739338948666,0.3256,95934.0,95929.0,0.156365]
[1739338948860,0.001,95931.0,95923.0,0.0817]
[1739338949073,0.208472,95937.0,95925.0,0.208495]
[1739338949460,0.156356,95935.0,95928.0,0.156367]
[1739338950571,0.156356,95935.0,95928.0,0.157367]
[1739338951203,0.156356,95935.0,95928.0,0.001]
[1739338951406,0.156356,95935.0,95928.0,0.157367]
[1739338951785,0.156357,95934.0,95928.0,0.157367]
[1739338951964,0.156357,95934.0,95928.0,0.158367]
[1739338952166,0.00022408,95940.0,95928.0,0.002]
[1739338952594,0.156359,95933.0,95928.0,0.002]
[1739338952932,0.156359,95933.0,95928.0,0.001]
[1739338953234,0.156359,95933.0,95928.0,0.002]
[1739338953392,0.156359,95933.0,95928.0,0.001]
[1739338953597,0.156359,95933.0,95928.0,0.003]
[1739338954351,0.156359,95933.0,95928.0,0.002]
[1739338954528,0.156359,95933.0,95928.0,0.004]
[1739338955552,0.156359,95933.0,95928.0,0.002]
[1739338956170,0.00022387,95935.0,95928.0,0.004]
[1739338956369,0.156359,95933.0,95928.0,0.004]
[1739338957476,0.156359,95933.0,95928.0,0.002]
[1739338957676,0.00022387,95935.0,95928.0,0.002]
[1739338957901,0.156362,95932.0,95928.0,0.003]
[1739338958261,0.156362,95932.0,95928.0,0.002]
[1739338958551,0.156362,95932.0,95928.0,0.004]
[1739338958845,0.156362,95932.0,95928.0,0.002]
[1739338959054,0.156362,95932.0,95925.0,0.15637]
[1739338959252,0.156362,95932.0,95928.0,0.002]
[1739338959584,0.156362,95932.0,95928.0,0.005]
[1739338959923,0.156362,95932.0,95928.0,0.003]
[1739338960765,0.208477,95934.0,95928.0,0.003]
[1739338960995,0.156362,95931.0,95928.0,0.003]
[1739338961786,0.156362,95931.0,95928.0,0.002]
[1739338961934,0.156362,95931.0,95928.0,0.003]
[1739338962152,0.156362,95931.0,95928.0,0.001]
[1739338962393,0.156362,95931.0,95928.0,0.003]
[1739338962769,0.156362,95931.0,95928.0,0.006]
[1739338963855,0.156364,95930.0,95928.0,0.006]
[1739338964747,0.156364,95930.0,95923.0,0.238073]
[1739338964943,0.156364,95930.0,95928.0,0.004]
[1739338965138,0.156364,95930.0,95928.0,0.007]
[1739338965712,0.156364,95930.0,95928.0,0.003]
[1739338966909,0.156364,95930.0,95928.0,0.0031066]
[1739338967968,0.208478,95933.0,95928.0,0.0031066]
[1739338968265,0.00022387,95935.0,95928.0,0.0071066]
[1739338968469,0.15657987,95935.0,95928.0,0.0071066]
[1739338968850,0.15657987,95935.0,95928.0,0.0001066]
[1739338969263,0.15657987,95935.0,95928.0,0.0041066]
[1739338969702,0.15657987,95935.0,95928.0,0.0021066]
[1739338969910,0.15657987,95935.0,95928.0,0.0031066]
[1739338970438,0.156358,95934.0,95928.0,0.0031066]
[1739338970559,0.156358,95934.0,95928.0,0.1594736]
[1739338970761,0.156359,95933.0,95928.0,0.0041066]
[1739338970957,0.156361,95932.0,95928.0,0.0041066]
[1739338971189,0.156361,95932.0,95928.0,0.0031066]
[1739338971538,0.156361,95932.0,95928.0,0.0041066]
[1739338972012,0.20869887,95935.0,95928.0,0.0041066]
[1739338972195,0.156358,95934.0,95928.0,0.0001066]
[1739338972389,0.156358,95934.0,95928.0,0.0051066]
[1739338972596,0.156358,95934.0,95928.0,0.0031066]
[1739338972893,0.156358,95934.0,95928.0,0.0001066]
[1739338973193,0.156358,95934.0,95928.0,0.0011066]
[1739338973395,0.00022387,95935.0,95928.0,0.0011066]
[1739338973601,0.156363,95931.0,95928.0,0.0031066]
[1739338973736,0.156365,95929.0,95928.0,0.0011066]
[1739338974137,0.156365,95929.0,95928.0,0.0031066]
[1739338974337,0.156365,95929.0,95928.0,0.0021066]
[1739338974660,0.156365,95929.0,95928.0,0.0031066]
[1739338975057,0.156365,95929.0,95928.0,0.0021066]
[1739338975457,0.157365,95929.0,95928.0,0.0001066]
[1739338975865,0.001,95929.0,95928.0,0.0011066]
[1739338976069,0.156365,95929.0,95928.0,0.0001066]
[1739338976274,0.156365,95929.0,95928.0,0.0011066]
[1739338976638,0.156365,95929.0,95928.0,0.0001066]
[1739338976994,0.156365,95929.0,95928.0,0.0021066]
[1739338977407,0.157365,95929.0,95928.0,0.0021066]
[1739338977960,0.156365,95929.0,95928.0,0.0021066]
[1739338978446,0.156365,95929.0,95928.0,0.0031066]
[1739338978676,0.179365,95929.0,95928.0,0.0031066]
[1739338979011,0.179365,95929.0,95928.0,0.0021066]
[1739338979254,0.180365,95929.0,95928.0,0.0001066]
[1739338979688,0.180365,95929.0,95928.0,0.0011066]
[1739338979916,0.180365,95929.0,95928.0,0.0001066]
[1739338980490,0.19993176,95929.0,95928.0,0.0001066]
[1739338980687,0.20193176,95929.0,95928.0,0.0001066]
[1739338981097,0.20093176,95929.0,95928.0,0.0001066]
[1739338981276,0.20893176,95929.0,95928.0,0.0011066]
[1739338981878,0.20093176,95929.0,95928.0,0.0001066]
[1739338982168,0.20793176,95929.0,95928.0,0.0011066]
[1739338982346,0.20993176,95929.0,95928.0,0.0011066]
[1739338982699,0.20793176,95929.0,95928.0,0.0011066]
[1739338982944,0.20993176,95929.0,95928.0,0.0011066]
[1739338983670,0.20093176,95929.0,95928.0,0.0001066]
[1739338984009,0.21093176,95929.0,95928.0,0.0011066]
[1739338985268,0.20693176,95929.0,95928.0,0.0011066]
[1739338985479,0.187365,95929.0,95928.0,0.0011066]
[1739338985680,0.189365,95929.0,95928.0,0.0011066]
[1739338988382,0.416982,95927.0,95910.0,0.01491684]
[1739338988550,0.156384,95918.0,95911.0,0.156393]
[1739338988766,0.156386,95917.0,95909.0,0.156396]
[1739338989374,0.156386,95917.0,95910.0,0.156395]
[1739338989672,0.208508,95920.0,95910.0,0.156395]
[1739338989909,0.156383,95918.0,95910.0,0.156395]
[1739338990123,0.156385,95917.0,95910.0,0.157395]
[1739338990328,0.156385,95917.0,95911.0,0.001]
[1739338991465,0.156383,95919.0,95906.0,0.15]
[1739338991669,0.01954684,95916.0,95911.0,0.001]
[1739338991871,0.01954684,95916.0,95915.0,0.156388]
[1739338993215,0.01954684,95916.0,95915.0,0.030388]
[1739338993538,0.01954684,95916.0,95915.0,0.002]
[1739338993717,0.01954684,95916.0,95915.0,0.158388]
[1739338994075,0.01954684,95916.0,95915.0,0.161388]
[1739338994479,0.01954684,95916.0,95915.0,0.158388]
[1739338994740,0.02054684,95916.0,95915.0,0.162388]
[1739338994941,0.01850366,95916.0,95915.0,0.162388]
[1739338995484,0.01850366,95916.0,95915.0,0.165388]
[1739338996122,0.01850366,95916.0,95915.0,0.162388]
[1739338996335,0.01750366,95916.0,95915.0,0.156388]
[1739338996534,0.01750366,95916.0,95915.0,0.167388]
[1739338996734,0.01850366,95916.0,95915.0,0.167388]
[1739338997853,0.01850366,95916.0,95915.0,0.163388]
[1739338998090,0.01850366,95916.0,95915.0,0.167388]
[1739338999381,0.001,95916.0,95915.0,0.163388]
[1739338999611,0.156372,95925.0,95918.0,0.156383]
[1739339000940,0.156374,95924.0,95918.0,0.156383]
[1739339001155,0.156375,95923.0,95915.0,0.160388]
[1739339001364,0.156378,95922.0,95915.0,0.004]
[1739339001565,0.156378,95922.0,95916.0,0.156386]
[1739339001767,0.156375,95924.0,95916.0,0.156386]
[1739339002112,0.156374,95924.0,95917.0,0.156384]
[1739339002325,0.208489,95928.0,95918.0,0.001]
[1739339002569,0.156373,95925.0,95917.0,0.156383]
[1739339003352,0.208491,95927.0,95917.0,0.001]
[1739339003549,0.156374,95924.0,95918.0,0.001]
[1739339003972,0.156375,95924.0,95915.0,0.0001066]
[1739339004172,0.156379,95921.0,95915.0,0.0001066]
[1739339004771,0.00022387,95925.0,95915.0,0.0001066]
[1739339004996,0.00022387,95925.0,95918.0,0.001]
[1739339005191,0.156379,95921.0,95918.0,0.001]
[1739339005393,0.2085,95923.0,95918.0,0.001]
[1739339005590,0.156381,95919.0,95918.0,0.001]
[1739339006697,0.156381,95919.0,95915.0,0.0001066]
[1739339006892,0.208504,95922.0,95915.0,0.0031066]
[1739339007096,0.208504,95922.0,95918.0,0.002]
[1739339007299,0.156381,95919.0,95918.0,0.002]
[1739339007799,0.156381,95919.0,95918.0,0.004]
[1739339007946,0.15638,95921.0,95918.0,0.004]
[1739339008397,0.15638,95921.0,95918.0,0.002]
[1739339009148,0.15638,95921.0,95918.0,0.001]
[1739339009549,0.15638,95921.0,95918.0,0.002]
[1739339011022,0.156381,95919.0,95918.0,0.002]
[1739339012029,0.156381,95919.0,95918.0,0.001]
[1739339012215,0.15638,95920.0,95918.0,0.002]
[1739339012412,0.15638,95920.0,95915.0,0.0001066]
[1739339012656,0.15638,95920.0,95918.0,0.002]
[1739339012814,0.15638,95920.0,95918.0,0.004]
[1739339013152,0.15638,95920.0,95915.0,0.0001066]
[1739339013450,0.15638,95920.0,95918.0,0.003]
[1739339014026,0.156381,95919.0,95918.0,0.002]
[1739339014631,0.156386,95916.0,95915.0,0.0011066]
[1739339014934,0.156386,95916.0,95915.0,0.0031066]
[1739339015139,0.156386,95916.0,95915.0,0.0011066]
[1739339015457,0.156386,95916.0,95915.0,0.0001066]
[1739339015975,0.156386,95916.0,95915.0,0.0011066]
[1739339016439,0.15660987,95916.0,95915.0,0.0011066]
[1739339016642,0.15660987,95916.0,95915.0,0.0021066]
[1739339028304,0.15660987,95916.0,95906.0,0.22411516]
[1739339028439,0.15660987,95916.0,95909.0,0.156397]
[1739339028641,0.15660987,95916.0,95906.0,0.15]
[1739339028827,0.156388,95915.0,95908.0,0.156399]
[1739339029487,0.156388,95915.0,95909.0,0.156398]
[1739339029670,0.156388,95915.0,95909.0,0.158398]
[1739339030073,0.156388,95915.0,95909.0,0.157398]
[1739339030506,0.156388,95915.0,95909.0,0.001]
[1739339030701,0.00022387,95916.0,95909.0,0.001]
[1739339031002,0.00022387,95916.0,95904.0,0.2326]
[1739339031003,0.00022387,95916.0,95903.0,0.01505595]
[1739339031235,0.208517,95915.0,95908.0,0.002]
[1739339031348,0.156394,95912.0,95908.0,0.002]
[1739339031554,0.156394,95912.0,95908.0,0.001]
[1739339031871,0.156394,95912.0,95909.0,0.001]
[1739339032073,0.00022387,95916.0,95900.0,0.0001066]
[1739339032280,0.156403,95906.0,95900.0,0.0001066]
[1739339032726,0.00022387,95916.0,95900.0,0.0001066]
[1739339032727,0.156406,95904.0,95900.0,0.0001066]
[1739339033302,0.00022387,95916.0,95900.0,0.0001066]
[1739339033303,0.20852,95914.0,95900.0,0.0001066]
[1739339033531,0.156409,95903.0,95900.0,0.0001066]
[1739339033936,0.156409,95902.0,95900.0,0.0001066]
[1739339035149,0.156405,95905.0,95900.0,0.0001066]
[1739339035562,0.001,95902.0,95900.0,0.0151066]
[1739339036276,0.156406,95904.0,95900.0,0.0001066]
[1739339036571,0.156406,95904.0,95900.0,0.0091066]
[1739339037134,0.15641,95902.0,95900.0,0.0091066]
[1739339037336,0.156407,95904.0,95900.0,0.0091066]
[1739339037543,0.156407,95904.0,95900.0,0.0141066]
[1739339037735,0.156407,95904.0,95900.0,0.0001066]
[1739339038157,0.001,95902.0,95900.0,0.0111066]
[1739339038586,0.208539,95906.0,95900.0,0.0111066]
[1739339038587,0.156411,95901.0,95900.0,0.0051066]
[1739339038893,0.156411,95901.0,95900.0,0.0141066]
[1739339039286,0.156411,95901.0,95900.0,0.0051066]
[1739339039513,0.208543,95904.0,95900.0,0.0001066]
[1739339039707,0.001,95902.0,95900.0,0.0111066]
[1739339039881,0.15741,95902.0,95900.0,0.0111066]
[1739339040478,0.156411,95901.0,95900.0,0.0111066]
[1739339040684,0.001,95902.0,95900.0,0.0111066]
[1739339040857,0.001,95901.0,95900.0,0.0171066]
[1739339041065,0.156411,95901.0,95900.0,0.0001066]
[1739339041234,0.156409,95903.0,95900.0,0.0061066]
[1739339041449,0.001,95901.0,95900.0,0.0171066]
[1739339042039,0.156411,95901.0,95900.0,0.0001066]
[1739339042383,0.208543,95904.0,95900.0,0.0001066]
[1739339042384,0.208543,95904.0,95900.0,0.0151066]
[1739339042692,0.15641,95902.0,95900.0,0.0101066]
[1739339042885,0.208531,95909.0,95900.0,0.0001066]
[1739339043653,0.156407,95904.0,95900.0,0.0001066]
[1739339043860,0.156411,95901.0,95900.0,0.0001066]
[1739339044060,0.001,95901.0,95900.0,0.0061066]
[1739339044263,0.001,95901.0,95900.0,0.0121066]
[1739339044644,0.001,95901.0,95900.0,0.0151066]
[1739339044962,0.001,95901.0,95900.0,0.0121066]
[1739339045213,0.002,95901.0,95900.0,0.0181066]
[1739339050829,0.158411,95901.0,95900.0,0.0181066]
[1739339051402,0.002,95901.0,95900.0,0.0181066]
[1739339051998,0.158411,95901.0,95900.0,0.0181066]
[1739339061718,0.157411,95901.0,95900.0,0.0061066]
[1739339062066,0.17697533,95901.0,95900.0,0.0101066]
[1739339062420,0.17697533,95901.0,95900.0,0.0061066]
[1739339063064,0.17597533,95901.0,95900.0,0.0001066]
[1739339063429,0.17597533,95901.0,95900.0,0.0031066]
[1739339063852,0.17597533,95901.0,95900.0,0.0071066]
[1739339065448,0.156411,95901.0,95900.0,0.0071066]
[1739339076039,0.20876687,95904.0,95900.0,0.0071066]
[1739339076040,0.15662987,95904.0,95900.0,0.0071066]
[1739339076240,0.156408,95903.0,95900.0,0.0071066]
[1739339076469,0.156409,95902.0,95900.0,0.0071066]
[1739339076888,0.156409,95902.0,95900.0,0.0031066]
[1739339077063,0.156409,95902.0,95900.0,0.0001066]
[1739339077262,0.156409,95902.0,95900.0,0.0011066]
[1739339077470,0.156409,95902.0,95900.0,0.0031066]
[1739339077756,0.156409,95902.0,95900.0,0.0021066]
[1739339078084,0.156409,95902.0,95900.0,0.0041066]
[1739339078750,0.156409,95902.0,95900.0,0.0021066]
[1739339079171,0.156409,95902.0,95900.0,0.0041066]
[1739339079847,0.156411,95901.0,95900.0,0.0041066]
[1739339080783,0.156411,95901.0,95900.0,0.0021066]
[1739339081155,0.156411,95901.0,95900.0,0.0051066]
[1739339082490,0.156411,95901.0,95900.0,0.0031066]
[1739339082694,0.156411,95901.0,95900.0,0.0061066]
[1739339083402,0.156408,95903.0,95900.0,0.0061066]
[1739339083558,0.00022387,95904.0,95900.0,0.0061066]
[1739339083761,0.156409,95902.0,95900.0,0.0061066]
[1739339084185,0.156409,95902.0,95900.0,0.0031066]
[1739339084618,0.153809,95902.0,95900.0,0.0051066]
[1739339084999,0.156411,95901.0,95900.0,0.0031066]
[1739339085372,0.156411,95901.0,95900.0,0.0051066]
[1739339085929,0.156411,95901.0,95900.0,0.0021066]
[1739339086780,0.156411,95901.0,95900.0,0.0051066]
[1739339086920,0.156411,95901.0,95900.0,0.0031066]
[1739339087712,0.156411,95901.0,95900.0,0.0061066]
[1739339089534,0.208544,95903.0,95900.0,0.0061066]
[1739339089757,0.156411,95901.0,95900.0,0.0061066]
[1739339090382,0.156411,95901.0,95900.0,0.0031066]
[1739339090796,0.156411,95901.0,95900.0,0.0051066]
[1739339091131,0.156409,95903.0,95900.0,0.0051066]
[1739339091314,0.208541,95905.0,95900.0,0.0031066]
[1739339091510,0.156408,95903.0,95900.0,0.0061066]
[1739339092619,0.156408,95903.0,95900.0,0.0031066]
[1739339092838,0.156408,95903.0,95900.0,0.01905517]
[1739339093040,0.156407,95904.0,95900.0,0.01605517]
[1739339093248,0.156408,95903.0,95900.0,0.01805517]
[1739339093404,0.00022387,95917.0,95900.0,0.01805517]
[1739339093405,0.156402,95907.0,95900.0,0.01805517]
[1739339094005,0.156402,95907.0,95900.0,0.01605517]
[1739339094207,0.156402,95907.0,95900.0,0.01505517]
[1739339094652,0.156402,95907.0,95900.0,0.01605517]
[1739339094850,0.156402,95907.0,95900.0,0.01505517]
[1739339095481,0.156403,95906.0,95900.0,0.01505517]
[1739339096388,0.156403,95906.0,95900.0,0.01405517]
[1739339096763,0.157403,95906.0,95900.0,0.01505517]
[1739339096964,0.001,95906.0,95900.0,0.01505517]
[1739339097172,0.157403,95906.0,95900.0,0.01505517]
[1739339098817,0.156404,95905.0,95900.0,0.01505517]
[1739339099050,0.156407,95904.0,95900.0,0.01505517]
[1739339099705,0.023,95913.0,95900.0,0.0011066]
[1739339099882,0.156405,95905.0,95900.0,0.0001066]
[1739339100273,0.156405,95905.0,95900.0,0.0021066]
[1739339100529,0.156405,95905.0,95900.0,0.0001066]
[1739339100732,0.00022387,95906.0,95900.0,0.0011066]
[1739339101134,0.156404,95905.0,95900.0,0.0011066]
[1739339101341,0.00022387,95906.0,95900.0,0.0011066]
[1739339101499,0.156404,95905.0,95900.0,0.0011066]
[1739339101720,0.156406,95904.0,95900.0,0.0011066]
[1739339102203,0.156406,95904.0,95900.0,0.0001066]
[1739339102400,0.001,95905.0,95900.0,0.0001066]
[1739339103042,0.15662687,95906.0,95900.0,0.0001066]
[1739339103242,0.156404,95905.0,95900.0,0.0021066]
[1739339103450,0.15662687,95906.0,95900.0,0.0011066]
[1739339103621,0.156404,95905.0,95900.0,0.0011066]
[1739339104024,0.00022387,95906.0,95900.0,0.0001066]
[1739339104267,0.156407,95904.0,95900.0,0.0001066]
[1739339104464,0.156407,95904.0,95900.0,0.0011066]
[1739339104796,0.00022387,95906.0,95900.0,0.0011066]
[1739339104966,0.156405,95905.0,95900.0,0.0011066]
[1739339105777,0.156405,95905.0,95900.0,0.0001066]
[1739339106183,0.156405,95905.0,95900.0,0.0011066]
[1739339106384,0.156405,95905.0,95900.0,0.0001066]
[1739339106795,0.156405,95905.0,95900.0,0.0011066]
[1739339107598,0.157405,95905.0,95900.0,0.0001066]
[1739339107974,0.156405,95905.0,95900.0,0.0001066]
[1739339108172,0.00022387,95906.0,95900.0,0.0001066]
[1739339108390,0.00022387,95906.0,95905.0,0.156404]
[1739339108585,0.00022387,95906.0,95904.0,0.156406]
[1739339109031,0.00022387,95906.0,95900.0,0.0001066]
[1739339109240,0.00022387,95906.0,95904.0,0.156405]